Cogmind - Beta 16.1 @@@ ROGUE MODE // 2026.02.11 @ 18:45:57 Player: nanux Result: Destroyed by D-53 Grenadier with Mini Grenade Launcher Performance ------------- Evolutions (1) 500 Regions Visited (3) 600 Robots Destroyed (34) 170 Value Destroyed (980) 980 Prototype IDs (1) 20 Alien Tech Used (0) 0 Bonus (0) 0 TOTAL SCORE: 2270 Bonus ------- None Cogmind --------- Core Integrity 0/400 Matter 278/300 Energy 100/100 System Corruption 1% Temperature Cool (0) Movement Walking (175) Ox1 Location -9/Mines Parts ------- > --- POWER (1) -------- (None) > --- PROPULSION (2) --- Aluminum Leg Aluminum Leg > --- UTILITY (4) ------ Large Storage Unit Sensor Array Signal Interpreter > --- WEAPON (2) ------- Rocket Launcher > --- INVENTORY (15) --- Ion Engine Aluminum Leg Aluminum Leg Aluminum Leg Medium Storage Unit Large Storage Unit Medium Matter Pod (100) Core Shielding System Shield Heavy EM Pulse Gun Heavy Particle Gun Heavy Particle Gun Particle Cannon Light Assault Rifle Mini Grenade Launcher Peak State ------------ > --- POWER ------------ Improved Ion Engine > --- PROPULSION ------- Aluminum Leg Aluminum Leg > --- UTILITY ---------- Heat Sink Medium Storage Unit Large Storage Unit Large Storage Unit > --- WEAPON ----------- Heavy Particle Gun Heavy Particle Gun > --- INVENTORY -------- Ion Engine Aluminum Leg Aluminum Leg Aluminum Leg Aluminum Leg Medium Matter Pod Sensor Array Signal Interpreter System Shield Heavy EM Pulse Gun Heavy Particle Gun Particle Cannon Light Assault Rifle Rocket Launcher Mini Grenade Launcher [Rating: 18] Favorites ----------- Power Light Nuclear Core Engine Ion Engine Power Core Light Nuclear Core Propulsion Aluminum Leg Leg Aluminum Leg Utility Large Storage Unit Device Heat Sink Storage Large Storage Unit Processor Signal Interpreter Protection Light Armor Plating Weapon Light Assault Rifle Energy Gun Heavy Particle Gun Energy Cannon Particle Cannon Ballistic Gun Light Assault Rifle Ballistic Cannon Light Cannon Launcher Mini Grenade Launcher Build | -11 -10 -9 -9 ------- Run | Yrd Mat Mat Min Slots Evolved 2 | . . 2 . Power . | . . . . Propulsion . | . . . . Utility 2 | . . 2 . Weapon . | . . . . Parts Attached 31 | 6 5 12 8 Power 4 | 1 1 . 2 Engine 3 | 1 . . 2 Core 1 | . 1 . . Reactor . | . . . . Propulsion 6 | 2 . 3 1 Treads . | . . . . Leg 6 | 2 . 3 1 Wheel . | . . . . Hover . | . . . . Flight . | . . . . Utility 12 | 1 3 5 3 Device 4 | . . 3 1 Storage 5 | 1 2 1 1 Processor 1 | . . . 1 Hackware . | . . . . Protection 2 | . 1 1 . Artifact . | . . . . Weapon 9 | 2 1 4 2 Energy Gun 4 | 1 . 2 1 Energy Cannon 1 | . 1 . . Ballistic Gun 1 | 1 . . . Ballistic Cannon 1 | . . 1 . Launcher 2 | . . 1 1 Special Weapon . | . . . . Impact Weapon . | . . . . Slashing Weapon . | . . . . Piercing Weapon . | . . . . Special Melee Weapon . | . . . . Unidentified Prototypes 1 | . . 1 . Parts Lost 10 | . . 4 6 Power 2 | . . . 2 Propulsion 1 | . . 1 . Utility 5 | . . 3 2 Weapon 2 | . . . 2 Highest Loss Streak 3 | . . 1 3 To Critical Strikes . | . . . . Average Backups 11 | 3 8 13 14 Power 1 | . 1 2 1 Propulsion 1 | 2 3 . 2 Utility 4 | . 2 6 4 Weapon 3 | . 1 4 6 Tool/Special . | . . . . Unused Backups 18 | . 6 2 10 Power 1 | . . . 1 Propulsion 7 | . 4 . 3 Utility 5 | . 1 2 2 Weapon 5 | . 1 . 4 Tool/Special . | . . . . Average Slot Usage (%) 97 | . 93 99 99 Engine 4 | . 8 . 9 Core 7 | . 5 11 1 Leg 23 | . 28 22 22 Device 14 | . . 21 20 Storage 13 | . 15 12 15 Processor 1 | . . . 7 Protection 7 | . 6 10 . Energy Gun 8 | . 9 4 20 Energy Cannon 4 | . 4 5 . Ballistic Gun 7 | . 14 6 1 Ballistic Cannon 2 | . . 4 . Peak Build Rating 18 | 6 11 16 18 Average Rating 12 | 5 7 14 17 On Entrance 8 | . 6 11 16 Avg Prop Armor Cover (%) 6 | . . 6 . Naked Turns . | . . . . Heaviest Build 62 | 13 33 53 62 Greatest Support 20 | 20 20 20 20 Greatest Overweight (x) 3 | . 1 3 3 Average Overweight (x) . | . . 1 1 Largest Inventory Capacity 15 | 8 15 15 15 Average Capacity 13 | 7 9 15 15 Most Carried 15 | 6 14 15 15 Average Carried 11 | 3 8 13 14 Final Capacity 15 | 8 15 15 15 Final Carried 15 | 6 14 15 15 Class Distribution -------------------- 96% | Mutant 3% | Scavenger-Mutant Dominant Class ---------------- Mutant | -10/Materials Mutant | -9/Materials Mutant | -9/Mines Resources | -11 -10 -9 -9 ----------- Run | Yrd Mat Mat Min Matter Collected 700 | 233 192 199 76 Remotely . | . . . . Salvage Created 1186 | . 178 597 411 Parts 66 | . 12 32 22 Haulers Intercepted . | . . . . Recyclers Shooed 1 | . . . 1 Parts Field Recycled . | . . . . Retrieved Matter . | . . . . Parts Self-Destructed . | . . . . Prevented . | . . . . Parts Restored . | . . . . Kills | -11 -10 -9 -9 ------- Run | Yrd Mat Mat Min Combat Hostiles Destroyed 26 | . 4 13 9 Guns 14 | . 1 4 9 Cannons 6 | . 3 3 . AOE 5 | . . 5 . Classes Destroyed 8 | . 2 6 . Worker 1 | . 1 . . Builder 2 | . . 1 1 Recycler 2 | . . 2 . Watcher 3 | . . 3 . Swarmer 4 | . . 4 . Grunt 16 | . 4 5 7 Duelist 3 | . . 1 2 Sentry 3 | . . 3 . Best Kill Streak 8 | . 2 8 3 Combat Bots Only 5 | . 2 5 3 Max Kills in Single Turn 6 | . 1 6 2 Gunslinging 1 | . . . 1 Exploded 4 | . . 4 . Melee . | . . . . Uniques/NPCs Destroyed . | . . . . Combat | -11 -10 -9 -9 -------- Run | Yrd Mat Mat Min Hostile Shots Fired 143 | . 18 67 58 Missed 47 | . 4 25 18 Hits 96 | . 14 42 40 Melee 11 | . . 7 4 Projectile 85 | . 14 35 36 AOE 11 | . . . 11 Critical Strikes 4 | . . 3 1 Damage Taken 1766 | . 169 700 897 Core 445 | . 45 74 326 Absorbed by Shields . | . . . . Core Remaining (%) 91 | 100 82 . . Volleys Fired 84 | . 17 41 26 Largest 2 | . 2 2 2 Hottest 110 | . 88 98 110 Shots Fired 164 | . 32 82 50 Gun 126 | . 24 54 48 Cannon 33 | . 8 25 . Launcher 5 | . . 3 2 Special . | . . . . Kinetic 59 | . 15 41 3 Thermal 100 | . 17 38 45 Explosive 5 | . . 3 2 Electromagnetic . | . . . . Robot Hit Streak 17 | . 10 17 13 Robot Miss Streak 4 | . 2 2 4 Penetration Max . | . . . . Secondary Targets 2 | . . . 2 Max Gunslinging Chain 1 | . . . 1 Shots Hit Robots 109 | . 17 59 33 Core Hits 49 | . 9 25 15 Critical Kills 1 | . . 1 . Critical Parts Destroyed . | . . . . Critical Strikes 4 | . 2 2 . Burn 3 | . 2 1 . Destroy 1 | . . 1 . Melee Attacks . | . . . . Impact . | . . . . Slashing . | . . . . Piercing . | . . . . Sneak Attacks . | . . . . Combat Hostiles . | . . . . Follow-up Attacks . | . . . . Damage Inflicted 2119 | . 240 1234 645 Guns 1211 | . 119 498 594 Cannons 499 | . 121 378 . Explosions 409 | . . 358 51 Melee . | . . . . Ramming . | . . . . Kinetic 388 | . 43 320 25 Thermal 1322 | . 197 556 569 Explosive 409 | . . 358 51 Electromagnetic . | . . . . Impact . | . . . . Slashing . | . . . . Piercing . | . . . . Highest Corruption 1 | . . 1 1 Average Corruption 1 | . . 1 1 Corruption Purged . | . . . . Corruption Blocked . | . . . . Effects 7 | . . 3 4 Message Errors 3 | . . 1 2 Matter Fused 1 | . . . 1 Heat Flow Errors 1 | . . 1 . Data Loss (minor) 1 | . . . 1 Alerts 1 | . . 1 . Overload Shots . | . . . . Overflow Damage 40 | . . 40 . Projectiles . | . . . . Explosions 40 | . . 40 . Melee . | . . . . Knockbacks 4 | . . 4 . Impact . | . . . . Kinetic 4 | . . 4 . Secondary . | . . . . Self-Inflicted Damage 58 | . . 58 . Shots 2 | . . 2 . Rammed . | . . . . Targets Rammed 1 | . . 1 . Kicked 1 | . . 1 . Crushed . | . . . . Highest Temperature 330 | . 330 188 108 Average Temperature 56 | . 111 25 41 Received Heat Transfer 447 | . 99 168 180 Siege Activations . | . . . . Martial Activations . | . . . . Shielding Activations . | . . . . Robots Disrupted . | . . . . Combat Hostiles . | . . . . Robots Corrupted . | . . . . Combat Hostiles . | . . . . Parts Fried . | . . . . Impact Corruptions . | . . . . Robots Melted 1 | . . 1 . Combat Hostiles 1 | . . 1 . Parts Melted 5 | . . 3 2 Heat Transferred 2812 | . 592 1110 1110 Parts Sabotaged . | . . . . Parts Stolen . | . . . . Parts Stripped . | . . . . Power Chain Reactions . | . . . . Alert | -11 -10 -9 -9 ------- Run | Yrd Mat Mat Min Maximum Alert Level . | . . . . Low Security (%) 100 | 100 100 100 100 Level 1 . | . . . . Level 2 . | . . . . Level 3 . | . . . . Level 4 . | . . . . Level 5 . | . . . . High Security . | . . . . Max Security . | . . . . Peak Influence 165 | . 50 165 95 Initial 37 | . . 17 37 Average 39 | . 7 58 46 Influence Increases 754 | . 124 379 251 Destroy 0b10 Robot/C 520 | . 80 260 180 Destroy 0b10 Robot/NC 40 | . 5 30 5 Destroy Leader 126 | . 20 66 40 Successful Hack 4 | . 4 . . Disable Machine 15 | . . . 15 Destroy Structure 34 | . . 23 11 Lose Combat Pursuer 15 | . 15 . . Influence Decreases 727 | . 82 325 320 Entered New Map 84 | . . 25 59 Time Decay 566 | . 82 270 214 Lost Part 77 | . . 30 47 Squads Dispatched 3 | . 2 1 . Investigation 2 | . 1 1 . Extermination . | . . . . Reinforcement 1 | . 1 . . Assault . | . . . . Garrison . | . . . . Intercept . | . . . . Searches Triggered . | . . . . Construction Impeded . | . . . . Haulers Reinforced . | . . . . Active Scanning Responses . | . . . . Cargo Convoy Interrupts . | . . . . Stealth | -11 -10 -9 -9 --------- Run | Yrd Mat Mat Min Distress Signals 2 | . 2 . . Communications Jammed . | . . . . Distress Signals . | . . . . Times Spotted 39 | . 10 17 12 Peak Tracking Total 5 | . 3 5 3 Tactical Retreats 1 | . 1 . . Traps | -11 -10 -9 -9 ------- Run | Yrd Mat Mat Min Traps Triggered 1 | . 1 . . Indirectly . | . . . . Trap Hack Attempts . | . . . . Triggered . | . . . . Disarmed . | . . . . Reprogrammed . | . . . . Reused . | . . . . Traps Extracted . | . . . . Installed . | . . . . Triggered . | . . . . Machines | -11 -10 -9 -9 ---------- Run | Yrd Mat Mat Min Machines Disabled 1 | . . . 1 Max in Single Turn 1 | . . . 1 Machines Repaired . | . . . . Machines Dismantled . | . . . . Machines Sabotaged . | . . . . Overloaded Fab Kills . | . . . . Hacking | -11 -10 -9 -9 --------- Run | Yrd Mat Mat Min Machines Accessed 4 | . 3 1 . Terminals 2 | . 2 . . Fabricators . | . . . . Repair Stations . | . . . . Recycling Units 1 | . 1 . . Scanalyzers 1 | . . 1 . Garrison Access . | . . . . Total Hacks 9 | . 6 3 . Successful 8 | . 5 3 . Failed 1 | . 1 . . Catastrophic . | . . . . Database Lockouts . | . . . . Manual . | . . . . Terminals 5 | . 5 . . Fabricators . | . . . . Repair Stations . | . . . . Recycling Units 1 | . 1 . . Scanalyzers 3 | . . 3 . Garrison Access . | . . . . Terminal Hacks 4 | . 4 . . Record 3 | . 3 . . Robot Analysis 1 | . 1 . . Fabricator Hacks . | . . . . Repair Station Hacks . | . . . . Recycling Unit Hacks 1 | . 1 . . Report Inventory 1 | . 1 . . Scanalyzer 3 | . . 3 . Insert Component 1 | . . 1 . Retrieve Study 2 | . . 2 . Garrison Access Hacks . | . . . . Unauthorized Hacks . | . . . . Terminals . | . . . . Fabricators . | . . . . Repair Stations . | . . . . Recycling Units . | . . . . Scanalyzers . | . . . . Garrison Access . | . . . . Data Cores Recovered . | . . . . Used . | . . . . Hacking Detections 2 | . 1 1 . Full Trace Events 1 | . . 1 . Feedback Events 1 | . . 1 . Corruption 1 | . . 1 . Feedback Blocked . | . . . . Robot Schematics Acquired . | . . . . Robots Built . | . . . . Authchips . | . . . . Time . | . . . . Total Robot Build Rating . | . . . . Part Schematics Acquired . | . . . . Parts Built . | . . . . Authchips . | . . . . Time . | . . . . Total Part Build Rating . | . . . . Part Studies Acquired 2 | . . 2 . Parts Repaired . | . . . . Time . | . . . . Parts Recycled . | . . . . Recycled Matter . | . . . . Retrieved Matter . | . . . . Retrieved Components . | . . . . Parts Scanalyzed . | . . . . Part Schematics Acquired . | . . . . Parts Damaged . | . . . . Bothacking | -11 -10 -9 -9 ------------ Run | Yrd Mat Mat Min Used RIF Installer . | . . . . Robots Hacked . | . . . . Non-combat . | . . . . Combat . | . . . . Robot Hacks Applied . | . . . . Relay Couplers Released . | . . . . Fabnet Peak Effective % . | . . . . Robots Rewired . | . . . . Allies Hacked . | . . . . Hacks Repelled . | . . . . Allies | -11 -10 -9 -9 -------- Run | Yrd Mat Mat Min Total Allies . | . . . . Largest Group . | . . . . Highest-Rated Group . | . . . . Highest-Rated Ally . | . . . . Total Orders . | . . . . Ally Attacks . | . . . . Total Damage . | . . . . Kills . | . . . . Allies Corrupted . | . . . . Allies Melted . | . . . . Intel | -11 -10 -9 -9 ------- Run | Yrd Mat Mat Min Active Infowar (turns) 1378 | . . 1048 330 Sensors 1378 | . . 1048 330 Robot Analysis Total 1 | . 1 . . Derelict Logs Recovered 1 | . . . 1 Drone Launches . | . . . . Drone Recoveries . | . . . . Exploration | -11 -10 -9 -9 ------------- Run | Yrd Mat Mat Min Turns Passed 2455 | 154 665 1186 450 Spaces Moved 1206 | 119 435 474 178 Core 5 | 5 . . . Treads . | . . . . Legs 1201 | 114 435 474 178 Wheels . | . . . . Hover . | . . . . Flight . | . . . . Fastest Speed 50 | 50 120 175 175 Average Speed 166 | 117 130 202 189 Slowest Speed 330 | 120 190 330 315 Overloaded Moves . | . . . . Propulsion Burnouts . | . . . . Robots Hopped . | . . . . Potential Cave-ins . | . . . . Cave-ins Triggered . | . . . . Exploration Rate (%) 29 | 5 59 26 29 Regions Visited 3 Branch Regions 1 Pre-discovered Areas . | . . . . Known Exits Taken . | . . . . Unknown Exits Taken 3 | 1 1 1 . Scrap Searched 1 | . . . 1 Spaces Dug . | . . . . Terrain Destroyed 38 | . . 25 13 Melee . | . . . . Projectile . | . . . . AOE 38 | . . 25 13 Terrain Rammed . | . . . . Walls Destroyed . | . . . . Machines Disabled . | . . . . Actions | -11 -10 -9 -9 --------- Run | Yrd Mat Mat Min Total 1504 | 130 506 626 242 Wait 124 | . 26 75 23 Move 1203 | 118 434 473 178 Hop . | . . . . Pick Up 39 | 6 16 13 4 Fast Attach 8 | 6 . 2 . Attach 10 | . 1 6 3 Detach 1 | . . 1 . Swap 14 | . 4 5 5 Drop 20 | . 8 9 3 Fire 84 | . 17 41 26 Melee . | . . . . Ram . | . . . . Kick 1 | . . 1 . Crush . | . . . . Escape Stasis . | . . . . Rewire . | . . . . Trap . | . . . . Miscellaneous . | . . . . Route ------- -11/Scrapyard -10/Materials (discovered 3 exits: *Mat x2 / [*Min]) -9/Materials -9/Mines (discovered 1 exit: [*Mat]) History --------- Turn | Location | Event 3 | -11/Scrapyard | Discovered new exit (range 15) 155 | -11/Scrapyard | Entered Materials 308 | -10/Materials | Build established: Mutant 407 | -10/Materials | Discovered new exit (range 10) 518 | -10/Materials | Discovered new exit (range 5) 785 | -10/Materials | Discovered new exit (range 4) 820 | -10/Materials | Entered another Materials area 820 | -9/Materials | Evolved 2 slots: Utility x2 1815 | -9/Materials | Discovered new exit (range 12) 2006 | -9/Materials | Entered Mines 2021 | -9/Mines | Discovered new exit (range 13) 2081 | -9/Mines | Lost 3 parts (1p1u1w) 2180 | -9/Mines | Learned location of 1 exit from Materials 2389 | -9/Mines | Core integrity fell below 50% 2426 | -9/Mines | Assembled infested the area 2455 | -9/Mines | Core integrity fell below 20% 2456 | -9/Mines | Destroyed by D-53 Grenadier with Mini Grenade Launcher Last Messages --------------- 02312_ G-47 Trooper destroyed. 02316_ K-01 Serf collects debris. 02325_ O,ZX:0O:1AWGF0G,TXAGF 02392_ Imp. Heat Sink melted. 02392_ G-47 Trooper destroyed. 02398_ G-34 Mercenary destroyed. 02426_ ALERT: Infestation in the mines, dispatching Demolisher response squad. 02447_ C-45 Heavy ARC bursts open, deploying its payload. 02447_ D-53 Grenadier unfolds itself. 02449_ U-05 Engineer lays Concrete. 02450_ Imp. Ion Engine destroyed. 02451_ The unstable cave ceiling collapses. 02451_ U-05 Engineer lays Concrete. 02452_ Heat Sink destroyed. 02452_ Hvy. Particle Gun destroyed. 02453_ U-05 Engineer destroyed. 02455_ U-05 Engineer lays Concrete. [Achievement: First Step to Greatness] Map ----- +----------------------------------------------------+ | ????????????????????????????# ##### ##? | | ????????????????????????????# ## | | ?????????????????????????????? "" ! # | | ???????????????????????????????""" ### % %! | | ????????????????????????????????????## %%### | | ???????????????????????????????????## #?#= | | ??????????????????????????????????## ##?## # | | ??????????????????????????????????# ##???##### | | ??????????????????????????????????# ##????????? | | ??????????????????????????????????## #?????????? | | ???????????????????????????????????# ##????????? | | ????????????????###????????????????# ##???????? | | ???????????????## #????####???????## ##??????? | | ????????#?#????# ???## ##???????## #??????? | | ??????? ??## #?## ##x??????## #??????? | | ??????? ## ## ##??????## ##??????? | | ?????? #?????## ##??????? | | ?????? #?????# * #??????? | | ?????? #??????# % #??????? | | ????????????# ##??????##%=%##??????? | | ????????????##tr ##???????#!=###### | | ?????????????# u ! #########= | | ?????????????# % x ###### | | ?????????????## ! [% #????????? | | ??????????????#### d ############????????? | | ?????????????????# @ #??????????????????? | | ????????????????### d #??????????????????? | | ???????????????# # #??????????????????? | | ??????????????## % ##??????????????????? | | ??????????????# [ ##???????????????????? | | ?????????????# % #######?????????????? | | ?????????????# ??????????? | | ????????????? # ######?????????????? | | ????????????? ?## ##??????????????????? | | ????????????????# ##???????????????????? | | ????????????????# ##???????????????????? | | ????????????????## #???????????????????? | | ?????????????????# ## #??????????????????? | | ?????????????????## ##?# #?????????????????? | | ??????????????????## #??? #?????????????????? | | ???????????????????# ??? #?????????????????? | | ???????????????????## #??? #?????????????????? | | ????????????????????#####??? ##?????????????????? | | ????????????????????????????? #??????????????????? | | ??????????????????????????????#??????????????????? | | ?????????????????????????????????????????????????? | | ?????????????????????????????????????????????????? | | ?????????????????????????????????????????????????? | | ?????????????????????????????????????????????????? | | ?????????????????????????????????????????????????? | +----------------------------------------------------+ Best States ------------- Heat Dissipation 48 Energy Generation 14 Energy Capacity 265 Matter Stores 300 Matter Capacity 400 Sight Range 16 Robot Scan Range 14 Terrain Scan Density 10 Armor Coverage 150 Evasion (%) 55 Item Schematics ----------------- None Robot Schematics ------------------ None Fabricated ------------ Nothing Repaired ---------- Nothing Studied --------- Aluminum Leg | -9/Materials | Hacked Ion Engine | -9/Materials | Hacked Alien Tech Used ----------------- None Achievements -------------- First Step to Greatness Challenges ------------ None Game ------ Seed MetaLightningShielding Manual? 0 Play Time 00:32:11 Cumulative 6.5 hours Start 2026.02.10 @ 23:47:47 End 2026.02.11 @ 18:45:57 Sessions 9 Manual Loads 0 Difficulty Rogue Special Mode None Game No. 3 Rogue 1 Adventurer 2 Explorer 0 Win Type - Total 0 Types 0/0/0/0/0/0/0/0/0/0 Lore% 2 Gallery% 16 Achievement% 14 Wizard Run 0 Options --------- Layout 2 ASCII 0 Keyboard 0 Movement Mouse Keybinds 0 Fullscreen 1 Font 18/SmallcapsGlow Map View 25x24 Zoom Use 97% Tactical HUD 1 Map Filters NONE Filters NONE Steam 1 RUN: cdc5b5ac-dcf2-450f-99a3-36f860cc2206